[Event "Chpt Reg Jeunes Occitanie 2026 - Espalion"]
[Site "Espalion, France"]
[Round "2.6"]
[ECO "?"]
[Annotator "?"]
[TimeControl "1h30 + 30sec/cp"]

1. d4 {[%clk 1:30:55][%emt 0:00:04]} 1... Nf6 {[%clk 1:30:53][%emt 0:00:07]}
2. c4 {[%clk 1:31:21][%emt 0:00:04]} 2... c5 {[%clk 1:31:20][%emt 0:00:03]} 3.
d5 {[%clk 1:31:33][%emt 0:00:18]} 3... b5 {[%clk 1:31:45][%emt 0:00:05]} 4.
cxb5 {[%clk 1:31:56][%emt 0:00:08]} 4... a6 {[%clk 1:32:11][%emt 0:00:05]} 5.
e3 {[%clk 1:31:50][%emt 0:00:35]} 5... g6 {[%clk 1:29:21][%emt 0:03:20]} 6.
Nc3 {[%clk 1:30:52][%emt 0:01:28]} 6... d6 {[%clk 1:27:38][%emt 0:02:13]} 7.
Nf3 {[%clk 1:28:40][%emt 0:02:41]} 7... Bg7 {[%clk 1:26:57][%emt 0:01:11]} 8.
Bd3 {[%clk 1:23:56][%emt 0:05:14]} 8... O-O {[%clk 1:24:32][%emt 0:02:55]} 9.
O-O {[%clk 1:22:39][%emt 0:01:47]} 9... Nbd7 {[%clk 1:22:57][%emt 0:02:06]}
10. h3 {[%clk 1:17:04][%emt 0:06:04]} 10... Nb6 {[%clk 1:16:25][%emt 0:07:02]}
11. e4 {[%clk 1:07:43][%emt 0:09:51]} 11... c4 {[%clk 1:06:44][%emt 0:10:11]}
12. Bc2 {[%clk 1:02:51][%emt 0:05:22]} 12... Bd7 {[%clk 1:04:17][%emt 0:02:58]}
 13. Nd4 {[%clk 0:57:11][%emt 0:06:09]} 13... axb5 {[%clk 0:51:10][%emt
0:13:38]} 14. Ndxb5 {[%clk 0:53:52][%emt 0:03:49]} 14... Bxb5 {[%clk
0:47:39][%emt 0:04:01]} 15. Nxb5 {[%clk 0:54:02][%emt 0:00:20]} 15... Nfd7
{[%clk 0:46:32][%emt 0:01:36]} 16. Nd4 {[%clk 0:46:14][%emt 0:08:17]} 16...
Nc5 {[%clk 0:44:22][%emt 0:02:41]} 17. Nc6 {[%clk 0:36:56][%emt 0:09:49]}
17... Qc7 {[%emt 0:06:05]} 18. a4 {[%clk 0:31:37][%emt 0:00:56]} 18... e6
{[%clk 0:35:30][%emt 0:08:41]} 19. Ra2 {[%clk 0:21:23][%emt 0:10:44]} 19...
exd5 {[%clk 0:34:43][%emt 0:01:16]} 20. exd5 {[%clk 0:21:13][%emt 0:00:40]}
20... Rfe8 {[%clk 0:33:12][%emt 0:02:01]} 21. Be3 {[%clk 0:17:06][%emt
0:04:37]} 21... Ne4 {[%clk 0:30:07][%emt 0:03:35]} 22. a5 {[%clk 0:14:48][%emt
0:02:49]} 22... Nd7 {[%clk 0:28:12][%emt 0:02:24]} 23. Bd4 {[%clk
0:13:26][%emt 0:01:53]} 23... Ndf6 {[%clk 0:26:00][%emt 0:02:42]} 24. Bxe4
{[%clk 0:11:50][%emt 0:02:06]} 24... Rxe4 {[%clk 0:25:12][%emt 0:01:18]} 25.
Qf3 {[%clk 0:08:22][%emt 0:03:58]} 25... g5 {[%clk 0:21:57][%emt 0:03:44]} 26.
g3 {[%clk 0:07:01][%emt 0:01:52]} 26... Rxd4 {[%clk 0:16:35][%emt 0:05:52]}
27. Nxd4 {[%clk 0:07:17][%emt 0:00:13]} 27... Rxa5 {[%clk 0:16:51][%emt
0:00:14]} 28. Rxa5 {[%clk 0:05:24][%emt 0:02:23]} 28... Qxa5 {[%clk
0:17:15][%emt 0:00:06]} 29. Nf5 {[%clk 0:04:22][%emt 0:01:32]} 29... Nxd5
{[%clk 0:16:22][%emt 0:01:24]} 30. Nxg7 {[%clk 0:03:48][%emt 0:01:04]} 30...
Kxg7 {[%clk 0:16:40][%emt 0:00:12]} 31. Rd1 {[%clk 0:03:43][%emt 0:00:35]}
31... Nf6 {[%clk 0:16:33][%emt 0:00:36]} 32. Rxd6 {[%clk 0:02:39][%emt
0:01:34]} 32... Qa1+ {[%clk 0:16:50][%emt 0:00:13]} 33. Kg2 {[%clk
0:02:03][%emt 0:01:07]} 33... Qxb2 {[%clk 0:17:05][%emt 0:00:14]} 34. Rc6
{[%clk 0:01:32][%emt 0:01:01]} 34... Qd4 {[%clk 0:17:01][%emt 0:00:34]} 35.
Qe3 {[%clk 0:01:02][%emt 0:01:00]} 35... Qd5+ {[%clk 0:17:09][%emt 0:00:22]}
36. Qf3 {[%clk 0:01:23][%emt 0:00:10]} 36... Qd4 {[%clk 0:17:23][%emt 0:00:15]}
 37. Rc7 {[%clk 0:00:57][%emt 0:00:56]} 37... h6 {[%clk 0:16:01][%emt 0:01:52]}
 38. Rc6 {[%clk 0:00:53][%emt 0:00:33]} 38... Kg6 {[%clk 0:15:09][%emt
0:01:23]} 39. Rc7 {[%clk 0:00:53][%emt 0:00:30]} 39... Kg7 {[%clk
0:14:38][%emt 0:01:00]} 40. Qf5 {[%clk 0:00:43][%emt 0:00:41]} 40... Kg8
{[%clk 0:07:52][%emt 0:07:15]} 41. Qc8+ {[%clk 0:00:53][%emt 0:00:22]} 41...
Kg7 {[%clk 0:08:01][%emt 0:00:21]} 42. Qe6 {[%clk 0:00:43][%emt 0:00:39]}
42... Qd5+ {[%clk 0:06:26][%emt 0:02:06]} 43. Qxd5 {[%clk 0:01:08][%emt
0:00:05]} 43... Nxd5 {[%clk 0:06:52][%emt 0:00:03]} 44. Rxc4 {[%clk
0:01:32][%emt 0:00:06]} 44... f6 {[%clk 0:06:33][%emt 0:00:48]} 45. Kf3 {[%clk
0:01:28][%emt 0:00:34]} 45... Kg6 {[%clk 0:04:44][%emt 0:02:19]} 46. Ke4
{[%clk 0:01:05][%emt 0:00:53]} 46... Ne7 {[%clk 0:04:46][%emt 0:00:29]} 47.
Rc7 {[%clk 0:00:43][%emt 0:00:51]} 47... Nf5 {[%clk 0:04:18][%emt 0:00:58]}
48. Rd7 {[%clk 0:00:34][%emt 0:00:39]} 48... Ng7 {[%clk 0:03:45][%emt 0:01:03]}
 49. g4 {[%clk 0:00:38][%emt 0:00:26]} 49... h5 {[%clk 0:03:05][%emt 0:01:09]}
50. Rxg7+ {[%clk 0:00:37][%emt 0:00:33]} 50... Kxg7 {[%clk 0:03:27][%emt
0:00:07]} 51. gxh5 {[%clk 0:01:05][%emt 0:00:02]} 51... Kh6 {[%clk
0:03:23][%emt 0:00:34]} 52. Kf5 {[%clk 0:00:48][%emt 0:00:47]} 52... Kxh5
{[%clk 0:02:05][%emt 0:01:48]} 53. f3 {[%clk 0:00:40][%emt 0:00:39]} 53... Kh6
{[%clk 0:01:23][%emt 0:01:12]} 54. Kxf6 {[%clk 0:01:01][%emt 0:00:09]} 54...
Kh5 {[%clk 0:01:28][%emt 0:00:25]} 55. Kg7 {[%clk 0:00:50][%emt 0:00:41]}
55... Kh4 {[%clk 0:00:54][%emt 0:01:03]} 56. Kg6 {[%clk 0:01:12][%emt 0:00:08]}
 56... Kg3 {[%clk 0:00:38][%emt 0:00:47]} 57. Kxg5 {[%clk 0:01:32][%emt
0:00:09]} 1-0

[White "FALCUCCI, Hugo Lou"]
[Black "DUCOS, Antonios"]
[WhiteElo "1674"]
[BlackElo "1890"]
[Result "0-1"]
[Date "2026.03.04"]

[Event "Chpt Reg Jeunes Occitanie 2026 - Espalion"]
[Site "Espalion, France"]
[Round "2.7"]
[ECO "?"]
[Annotator "?"]
[TimeControl "1h30 + 30sec/cp"]

1. e4 {[%clk 1:30:15][%emt 0:00:44]} 1... c5 {[%clk 1:30:50][%emt 0:00:10]} 2.
Nf3 {[%clk 1:30:39][%emt 0:00:05]} 2... Nc6 {[%clk 1:31:12][%emt 0:00:08]} 3.
Bb5 {[%clk 1:31:06][%emt 0:00:04]} 3... g6 {[%clk 1:31:19][%emt 0:00:23]} 4.
O-O {[%clk 1:31:31][%emt 0:00:05]} 4... Bg7 {[%clk 1:31:41][%emt 0:00:08]} 5.
Re1 {[%clk 1:31:56][%emt 0:00:04]} 5... d6 {[%clk 1:22:27][%emt 0:09:44]} 6.
c3 {[%clk 1:32:16][%emt 0:00:11]} 6... Bd7 {[%clk 1:13:08][%emt 0:09:49]} 7.
d4 {[%clk 1:32:03][%emt 0:00:42]} 7... Nf6 {[%clk 1:09:21][%emt 0:04:17]} 8.
Bg5 {[%clk 1:20:30][%emt 0:12:04]} 8... O-O {[%clk 1:08:23][%emt 0:01:29]} 9.
d5 {[%clk 1:01:48][%emt 0:19:11]} 9... Ne5 {[%clk 1:07:02][%emt 0:01:51]} 10.
Bxd7 {[%clk 1:01:12][%emt 0:01:06]} 10... Nxf3+ {[%clk 1:03:58][%emt 0:03:33]}
11. Qxf3 {[%clk 1:01:22][%emt 0:00:19]} 11... Nxd7 {[%clk 1:02:42][%emt
0:01:47]} 12. a4 {[%clk 1:00:03][%emt 0:01:49]} 12... Ne5 {[%clk 0:58:00][%emt
0:05:11]} 13. Qe2 {[%clk 0:54:00][%emt 0:06:33]} 13... c4 {[%clk 0:53:12][%emt
0:05:19]} 14. Na3 {[%clk 0:48:32][%emt 0:05:58]} 14... Rc8 {[%clk
0:50:55][%emt 0:02:47]} 15. f4 {[%clk 0:32:00][%emt 0:17:01]} 15... Nd3 {[%clk
0:47:52][%emt 0:03:34]} 16. Rf1 {[%clk 0:24:39][%emt 0:07:51]} 16... Qb6+
{[%clk 0:41:52][%emt 0:06:29]} 17. Kh1 {[%clk 0:25:01][%emt 0:00:08]} 17...
Qxb2 {[%clk 0:42:04][%emt 0:00:19]} 18. Qg4 {[%clk 0:11:24][%emt 0:14:07]}
18... Nf2+ {[%clk 0:40:25][%emt 0:02:08]} 19. Rxf2 {[%clk 0:11:48][%emt
0:00:07]} 19... Qxa1+ {[%emt 0:00:36]} 0-1

[White "LAVAL, Nolan"]
[Black "MAS, Marin"]
[WhiteElo "1876"]
[BlackElo "1667"]
[Result "1-0"]
[Date "2026.03.04"]

[Event "Chpt Reg Jeunes Occitanie 2026 - Espalion"]
[Site "Espalion, France"]
[Round "2.8"]
[ECO "?"]
[Annotator "?"]
[TimeControl "1h30 + 30sec/cp"]

1. e4 {[%clk 1:30:57][%emt 0:00:02]} 1... e5 {[%clk 1:30:54][%emt 0:00:06]} 2.
Nf3 {[%clk 1:31:24][%emt 0:00:03]} 2... Nf6 {[%clk 1:31:14][%emt 0:00:10]} 3.
Nxe5 {[%clk 1:31:13][%emt 0:00:41]} 3... d6 {[%clk 1:31:37][%emt 0:00:07]} 4.
Nf3 {[%clk 1:31:40][%emt 0:00:03]} 4... Nxe4 {[%clk 1:31:57][%emt 0:00:10]} 5.
Nc3 {[%clk 1:32:03][%emt 0:00:08]} 5... Nxc3 {[%clk 1:32:02][%emt 0:00:25]} 6.
dxc3 {[%clk 1:32:28][%emt 0:00:04]} 6... Be7 {[%clk 1:32:19][%emt 0:00:13]} 7.
Bd3 {[%clk 1:32:05][%emt 0:00:53]} 7... Nc6 {[%clk 1:31:03][%emt 0:01:47]} 8.
Bf4 {[%clk 1:32:23][%emt 0:00:11]} 8... Bg4 {[%clk 1:30:26][%emt 0:01:07]} 9.
Qd2 {[%clk 1:32:14][%emt 0:00:40]} 9... O-O {[%clk 1:24:42][%emt 0:06:13]} 10.
h3 {[%clk 1:15:11][%emt 0:17:32]} 10... Bh5 {[%clk 1:20:09][%emt 0:05:03]} 11.
g4 {[%clk 1:14:26][%emt 0:01:15]} 11... Bg6 {[%clk 1:06:35][%emt 0:14:05]} 12.
O-O-O {[%clk 1:12:28][%emt 0:02:28]} 12... a6 {[%clk 1:00:43][%emt 0:06:23]}
13. h4 {[%clk 1:11:04][%emt 0:01:53]} 13... h5 {[%clk 1:00:41][%emt 0:00:32]}
14. Bxg6 {[%clk 1:06:25][%emt 0:05:07]} 14... fxg6 {[%clk 1:00:06][%emt
0:01:06]} 15. gxh5 {[%clk 1:06:12][%emt 0:00:43]} 15... gxh5 {[%clk
0:59:56][%emt 0:00:40]} 16. Qd5+ {[%clk 1:06:22][%emt 0:00:20]} 16... Rf7
{[%clk 0:57:04][%emt 0:03:22]} 17. Ng5 {[%clk 1:03:15][%emt 0:03:36]} 17...
Bxg5 {[%clk 0:57:22][%emt 0:00:13]} 18. hxg5 {[%clk 1:03:23][%emt 0:00:21]}
18... g6 {[%clk 0:48:14][%emt 0:09:39]} 19. Rxh5 {[%clk 0:48:55][%emt 0:14:58]}
 19... gxh5 {[%clk 0:44:08][%emt 0:04:36]} 20. g6 {[%clk 0:49:03][%emt
0:00:22]} 20... Qf6 {[%clk 0:43:44][%emt 0:00:55]} 21. gxf7+ {[%clk
0:49:27][%emt 0:00:05]} 21... Qxf7 {[%clk 0:43:54][%emt 0:00:20]} 22. Rg1+
{[%clk 0:49:45][%emt 0:00:10]} 22... Kf8 {[%clk 0:43:35][%emt 0:00:52]} 23.
Bh6+ {[%clk 0:50:08][%emt 0:00:06]} 23... Ke8 {[%clk 0:42:26][%emt 0:01:39]}
24. Rg8+ {[%clk 0:50:33][%emt 0:00:05]} 24... Ke7 {[%clk 0:42:24][%emt
0:00:33]} 25. Bg5+ {[%clk 0:50:07][%emt 0:00:52]} 1-0

[White "JASKOWIAK, Leo"]
[Black "FIORIO, Thomas"]
[WhiteElo "1665"]
[BlackElo "1822"]
[Result "0-1"]
[Date "2026.03.04"]

[Event "Chpt Reg Jeunes Occitanie 2026 - Espalion"]
[Site "Espalion, France"]
[Round "2.9"]
[ECO "?"]
[Annotator "?"]
[TimeControl "1h30 + 30sec/cp"]

1. e4 {[%clk 1:30:57][%emt 0:00:03]} 1... c5 {[%clk 1:30:53][%emt 0:00:06]} 2.
Nc3 {[%clk 1:31:18][%emt 0:00:10]} 2... Nc6 {[%clk 1:31:01][%emt 0:00:23]} 3.
f4 {[%clk 1:31:41][%emt 0:00:06]} 3... e6 {[%clk 1:30:59][%emt 0:00:31]} 4.
Bc4 {[%clk 1:31:13][%emt 0:00:59]} 4... g6 {[%clk 1:29:31][%emt 0:01:58]} 5.
d3 {[%clk 1:30:23][%emt 0:01:20]} 5... Bg7 {[%clk 1:28:25][%emt 0:01:35]} 6.
Nf3 {[%clk 1:29:51][%emt 0:01:03]} 6... Nge7 {[%clk 1:28:15][%emt 0:00:40]} 7.
g4 {[%clk 1:25:13][%emt 0:05:07]} 7... d5 {[%clk 1:23:59][%emt 0:04:46]} 8.
Bb3 {[%clk 1:24:03][%emt 0:01:42]} 8... d4 {[%clk 1:20:47][%emt 0:03:42]} 9.
Ne2 {[%clk 1:24:07][%emt 0:00:25]} 9... b6 {[%clk 1:15:57][%emt 0:05:19]} 10.
Ng3 {[%clk 1:17:43][%emt 0:06:54]} 10... Bb7 {[%clk 1:13:12][%emt 0:03:15]}
11. h4 {[%clk 1:12:05][%emt 0:06:09]} 11... Na5 {[%clk 1:03:08][%emt 0:10:35]}
12. Ba4+ {[%clk 1:08:55][%emt 0:03:39]} 12... Bc6 {[%clk 1:03:21][%emt
0:00:17]} 13. Bxc6+ {[%clk 1:09:19][%emt 0:00:06]} 13... Naxc6 {[%clk
1:03:46][%emt 0:00:05]} 14. h5 {[%clk 1:07:46][%emt 0:02:03]} 14... Qd7 {[%clk
0:56:03][%emt 0:08:13]} 15. h6 {[%clk 1:00:59][%emt 0:07:17]} 15... Bf8 {[%clk
0:56:11][%emt 0:00:21]} 16. e5 {[%clk 0:59:08][%emt 0:02:23]} 16... O-O-O
{[%clk 0:55:28][%emt 0:01:12]} 17. Ne4 {[%clk 0:57:47][%emt 0:01:51]} 17...
Nd5 {[%clk 0:52:58][%emt 0:03:00]} 18. Nfg5 {[%clk 0:55:55][%emt 0:02:21]}
18... Ne3 {[%clk 0:35:09][%emt 0:18:19]} 19. Bxe3 {[%clk 0:54:11][%emt
0:02:13]} 19... dxe3 {[%clk 0:35:32][%emt 0:00:07]} 20. Nf6 {[%clk
0:51:52][%emt 0:02:50]} 20... Qd4 {[%clk 0:33:58][%emt 0:02:04]} 21. Rf1
{[%clk 0:45:01][%emt 0:07:21]} 21... Qxb2 {[%clk 0:31:13][%emt 0:03:14]} 22.
Qc1 {[%clk 0:41:02][%emt 0:04:30]} 22... Qc3+ {[%clk 0:30:16][%emt 0:01:26]}
23. Kd1 {[%clk 0:33:57][%emt 0:07:36]} 23... Nd4 {[%clk 0:27:36][%emt 0:03:09]}
 24. Re1 {[%clk 0:34:23][%emt 0:00:05]} 24... Nxc2 {[%clk 0:26:46][%emt
0:01:20]} 25. Ke2 {[%clk 0:28:40][%emt 0:06:13]} 25... Qxd3+ {[%clk
0:19:51][%emt 0:07:25]} 26. Kf3 {[%clk 0:28:10][%emt 0:00:59]} 26... Nxe1+
{[%clk 0:17:24][%emt 0:02:58]} 27. Qxe1 {[%clk 0:28:26][%emt 0:00:14]} 27...
e2+ {[%clk 0:17:09][%emt 0:00:44]} 28. Kf2 {[%clk 0:25:32][%emt 0:03:25]}
28... Qd1 {[%clk 0:14:08][%emt 0:03:30]} 29. Nxf7 {[%clk 0:15:00][%emt
0:11:03]} 29... Bxh6 {[%clk 0:11:41][%emt 0:02:56]} 30. g5 {[%clk
0:13:23][%emt 0:02:08]} 30... Bg7 {[%clk 0:11:14][%emt 0:00:57]} 31. Nxh8
{[%clk 0:12:47][%emt 0:01:07]} 31... Bxh8 {[%clk 0:11:36][%emt 0:00:08]} 32.
Qh1 {[%clk 0:10:41][%emt 0:02:35]} 32... Qxh1 {[%clk 0:11:41][%emt 0:00:26]}
33. Rxh1 {[%clk 0:11:04][%emt 0:00:07]} 33... Rd1 {[%clk 0:11:56][%emt
0:00:14]} 34. Re1 {[%clk 0:11:27][%emt 0:00:08]} 34... Rxe1 {[%clk
0:10:51][%emt 0:01:34]} 35. Kxe1 {[%clk 0:11:51][%emt 0:00:06]} 35... Bxf6
{[%clk 0:11:06][%emt 0:00:15]} 36. exf6 {[%clk 0:12:14][%emt 0:00:08]} 36...
Kd8 {[%clk 0:11:28][%emt 0:00:07]} 37. Kxe2 {[%clk 0:12:36][%emt 0:00:08]}
37... Ke8 {[%clk 0:11:31][%emt 0:00:27]} 38. Kf3 {[%clk 0:10:09][%emt 0:02:57]}
 38... Kf7 {[%clk 0:11:46][%emt 0:00:14]} 39. Kg4 {[%clk 0:09:48][%emt
0:00:52]} 39... c4 {[%clk 0:11:50][%emt 0:00:26]} 40. Kf3 {[%clk 0:10:11][%emt
0:00:06]} 40... b5 {[%clk 0:12:07][%emt 0:00:13]} 41. Ke3 {[%clk 0:10:25][%emt
0:00:16]} 41... a5 {[%clk 0:11:58][%emt 0:00:39]} 42. Kd4 {[%clk 0:10:51][%emt
0:00:05]} 42... h5 {[%clk 0:11:51][%emt 0:00:37]} 43. gxh6 {[%clk
0:11:12][%emt 0:00:08]} 43... Kxf6 {[%clk 0:12:16][%emt 0:00:05]} 44. Kc3
{[%clk 0:11:23][%emt 0:00:20]} 44... Kf7 {[%clk 0:12:31]} 0-1

[White "WOJTAS, Lumeann"]
[Black "THIRION RUTYNA, Lena"]
[WhiteElo "1815"]
[BlackElo "1664"]
[Result "1-0"]
[Date "2026.03.04"]

[Event "Chpt Reg Jeunes Occitanie 2026 - Espalion"]
[Site "Espalion, France"]
[Round "2.10"]
[ECO "?"]
[Annotator "?"]
[TimeControl "1h30 + 30sec/cp"]

1. e4 {[%clk 1:30:49][%emt 0:00:10]} 1... c5 {[%clk 1:30:45][%emt 0:00:16]} 2.
Nf3 {[%clk 1:31:09][%emt 0:00:10]} 2... d6 {[%clk 1:31:06][%emt 0:00:09]} 3.
Nc3 {[%clk 1:31:06][%emt 0:00:33]} 3... Nc6 {[%clk 1:31:18][%emt 0:00:19]} 4.
d4 {[%clk 1:31:20][%emt 0:00:15]} 4... cxd4 {[%clk 1:31:16][%emt 0:00:32]} 5.
Nxd4 {[%clk 1:31:38][%emt 0:00:12]} 5... Nf6 {[%clk 1:31:29][%emt 0:00:17]} 6.
Bg5 {[%clk 1:32:02][%emt 0:00:05]} 6... Nd7 {[%clk 1:27:56][%emt 0:04:04]} 7.
Bc4 {[%clk 1:26:42][%emt 0:05:50]} 7... Nce5 {[%clk 1:23:44][%emt 0:04:42]} 8.
Bb3 {[%clk 1:25:40][%emt 0:01:30]} 8... g6 {[%clk 1:23:55][%emt 0:00:19]} 9.
f4 {[%clk 1:22:21][%emt 0:03:48]} 9... Nc6 {[%clk 1:22:40][%emt 0:01:47]} 10.
Ndb5 {[%clk 1:18:23][%emt 0:04:28]} 10... Nf6 {[%clk 1:14:53][%emt 0:08:17]}
11. Bxf6 {[%clk 1:15:56][%emt 0:02:56]} 11... exf6 {[%clk 1:11:51][%emt
0:03:33]} 12. Nd5 {[%clk 1:14:30][%emt 0:01:55]} 12... Qa5+ {[%clk
1:08:12][%emt 0:04:09]} 13. c3 {[%clk 1:07:13][%emt 0:07:47]} 13... Be7 {[%clk
1:05:07][%emt 0:03:35]} 14. Nbc7+ {[%clk 1:07:21][%emt 0:00:23]} 14... Kf8
{[%clk 1:04:42][%emt 0:00:54]} 15. Nxa8 {[%clk 1:07:26][%emt 0:00:26]} 15...
Bd8 {[%clk 1:04:55][%emt 0:00:17]} 16. Bc2 {[%clk 1:03:20][%emt 0:04:34]}
16... Kg7 {[%clk 1:02:24][%emt 0:03:02]} 17. b4 {[%clk 1:03:40][%emt 0:00:11]}
17... Qa6 {[%clk 1:00:35][%emt 0:02:17]} 18. Nac7 {[%clk 1:03:39][%emt
0:00:32]} 18... Bxc7 {[%clk 0:59:48][%emt 0:01:17]} 19. Nxc7 {[%clk
1:04:04][%emt 0:00:04]} 19... Qc4 {[%clk 0:59:24][%emt 0:00:54]} 20. Qd3
{[%clk 1:04:08][%emt 0:00:27]} 20... Qxd3 {[%clk 0:59:17][%emt 0:00:37]} 21.
Bxd3 {[%clk 1:04:33][%emt 0:00:05]} 21... Nd8 {[%clk 0:58:53][%emt 0:00:53]}
22. O-O-O {[%clk 1:03:14][%emt 0:01:49]} 22... Ne6 {[%clk 0:59:05][%emt
0:00:19]} 23. Nd5 {[%clk 1:03:29][%emt 0:00:14]} 23... Bd7 {[%clk
0:59:12][%emt 0:00:24]} 24. g4 {[%clk 1:03:14][%emt 0:00:45]} 24... Bc6 {[%clk
0:59:10][%emt 0:00:32]} 25. f5 {[%clk 1:03:29][%emt 0:00:14]} 25... Bxd5
{[%clk 0:59:23][%emt 0:00:19]} 26. exd5 {[%clk 1:03:53][%emt 0:00:05]} 26...
Nf4 {[%clk 0:59:07][%emt 0:00:47]} 27. Bc4 {[%clk 1:01:59][%emt 0:02:23]}
27... Rc8 {[%clk 0:58:03][%emt 0:01:34]} 28. Rd4 {[%clk 1:02:22][%emt 0:00:06]}
 28... Ng2 {[%clk 0:58:24][%emt 0:00:10]} 29. Kd2 {[%clk 1:02:26][%emt
0:00:24]} 29... Re8 {[%clk 0:58:04][%emt 0:00:52]} 30. Bd3 {[%clk
1:02:29][%emt 0:00:26]} 1-0

[White "VALETY, Adam"]
[Black "MORALES, Maxime"]
[WhiteElo "1776"]
[BlackElo "1932"]
[Result "0-1"]
[Date "2026.03.05"]

[Event "Chpt Reg Jeunes Occitanie 2026 - Espalion"]
[Site "Espalion, France"]
[Round "3.6"]
[ECO "?"]
[Annotator "?"]
[TimeControl "1h30 + 30sec/cp"]

1. d4 {[%clk 1:30:57][%emt 0:00:02]} 1... Nf6 {[%clk 1:30:40][%emt 0:00:20]}
2. Nf3 {[%clk 1:31:23][%emt 0:00:05]} 2... e6 {[%clk 1:31:06][%emt 0:00:04]}
3. e3 {[%clk 1:31:48][%emt 0:00:05]} 3... c5 {[%clk 1:31:29][%emt 0:00:07]} 4.
b3 {[%clk 1:32:13][%emt 0:00:05]} 4... d5 {[%clk 1:31:48][%emt 0:00:10]} 5.
Bb2 {[%clk 1:32:37][%emt 0:00:07]} 5... Nc6 {[%clk 1:31:50][%emt 0:00:29]} 6.
Bd3 {[%clk 1:33:01][%emt 0:00:06]} 6... Bd6 {[%clk 1:31:46][%emt 0:00:34]} 7.
O-O {[%clk 1:33:19][%emt 0:00:12]} 7... O-O {[%clk 1:31:55][%emt 0:00:21]} 8.
a3 {[%clk 1:32:00][%emt 0:01:49]} 8... b6 {[%clk 1:31:24][%emt 0:01:00]} 9.
Ne5 {[%clk 1:32:23][%emt 0:00:07]} 9... Ne7 {[%clk 1:30:06][%emt 0:01:49]} 10.
Nd2 {[%clk 1:31:36][%emt 0:01:17]} 10... Bb7 {[%clk 1:30:07][%emt 0:00:27]}
11. Qe2 {[%clk 1:30:07][%emt 0:01:59]} 11... Rc8 {[%clk 1:26:10][%emt 0:04:28]}
 12. c4 {[%clk 1:24:25][%emt 0:06:13]} 12... Ne4 {[%clk 1:06:51][%emt 0:19:49]}
 13. cxd5 {[%clk 1:20:56][%emt 0:03:59]} 13... Nxd2 {[%clk 1:05:26][%emt
0:01:55]} 14. Qxd2 {[%clk 1:21:17][%emt 0:00:08]} 14... Bxe5 {[%clk
1:03:48][%emt 0:02:08]} 15. dxe5 {[%clk 1:21:39][%emt 0:00:08]} 15... Qxd5
{[%clk 1:02:48][%emt 0:01:29]} 16. e4 {[%clk 1:15:17][%emt 0:06:53]} 16...
Qxb3 {[%clk 0:56:36][%emt 0:06:42]} 17. Qc2 {[%clk 0:52:07][%emt 0:23:40]}
17... Qxc2 {[%clk 0:55:10][%emt 0:01:57]} 18. Bxc2 {[%emt 0:08:02]} 18... Rfd8
{[%clk 0:47:40]} 19. Rfd1 {[%clk 0:52:44][%emt 0:00:21]} 19... Nc6 {[%emt
0:14:51]} 20. Rd6 {[%clk 0:41:16]} 20... Kf8 {[%clk 0:41:41][%emt 0:04:04]}
21. f3 {[%clk 0:36:17][%emt 0:05:32]} 21... Ke7 {[%clk 0:37:26][%emt 0:04:45]}
22. Rad1 {[%clk 0:34:54][%emt 0:01:53]} 22... Na5 {[%clk 0:30:07][%emt
0:07:48]} 23. Ba4 {[%clk 0:30:02][%emt 0:05:21]} 23... Bc6 {[%clk
0:29:06][%emt 0:01:32]} 24. Bxc6 {[%clk 0:30:23][%emt 0:00:09]} 24... Nxc6
{[%clk 0:29:30][%emt 0:00:06]} 25. Kf2 {[%clk 0:30:16][%emt 0:00:37]} 25...
Na5 {[%clk 0:27:45][%emt 0:02:15]} 26. Bc1 {[%clk 0:27:21][%emt 0:03:25]}
26... Nc4 {[%clk 0:24:53][%emt 0:03:21]} 27. Bg5+ {[%clk 0:27:41][%emt
0:00:12]} 27... f6 {[%clk 0:20:34][%emt 0:04:49]} 28. exf6+ {[%clk
0:28:01][%emt 0:00:10]} 28... gxf6 {[%clk 0:20:57][%emt 0:00:07]} 29. Bxf6+
{[%clk 0:28:25][%emt 0:00:06]} 29... Kxf6 {[%clk 0:20:56][%emt 0:00:31]} 30.
Rxd8 {[%clk 0:28:48][%emt 0:00:07]} 30... Rxd8 {[%clk 0:20:31][%emt 0:00:55]}
31. Rxd8 {[%clk 0:29:15][%emt 0:00:02]} 31... Nxa3 {[%clk 0:20:16][%emt
0:00:45]} 32. Rd3 {[%clk 0:26:29][%emt 0:03:16]} 32... Nb5 {[%clk
0:16:38][%emt 0:04:08]} 33. Ke2 {[%clk 0:25:54][%emt 0:01:05]} 33... Nd4+
{[%clk 0:13:49][%emt 0:03:20]} 34. Kd2 {[%clk 0:26:19][%emt 0:00:03]} 34... e5
{[%clk 0:12:15][%emt 0:02:05]} 35. g3 {[%clk 0:26:18][%emt 0:00:31]} 35... a5
{[%clk 0:10:45][%emt 0:02:01]} 36. Rc3 {[%clk 0:25:57][%emt 0:00:51]} 36... b5
{[%clk 0:08:55][%emt 0:02:20]} 37. f4 {[%clk 0:24:26][%emt 0:02:01]} 37... c4
{[%clk 0:07:08][%emt 0:02:17]} 38. Ra3 {[%clk 0:19:38][%emt 0:05:18]} 38... b4
{[%clk 0:05:08][%emt 0:02:30]} 39. fxe5+ {[%clk 0:18:10][%emt 0:01:57]} 39...
Ke6 {[%clk 0:03:13][%emt 0:02:25]} 40. Ra2 {[%clk 0:17:18][%emt 0:01:23]}
40... Nb3+ {[%clk 0:03:05][%emt 0:00:38]} 41. Kc2 {[%clk 0:17:42][%emt
0:00:04]} 41... Kxe5 {[%clk 0:03:17][%emt 0:00:20]} 42. Kb1 {[%clk
0:16:00][%emt 0:02:11]} 42... Kxe4 {[%clk 0:02:33][%emt 0:01:15]} 43. g4
{[%clk 0:16:11][%emt 0:00:18]} 43... Kf4 {[%clk 0:01:32][%emt 0:01:31]} 44.
Rc2 {[%clk 0:13:50][%emt 0:02:51]} 44... c3 {[%clk 0:01:10][%emt 0:00:53]} 45.
Ra2 {[%clk 0:14:05][%emt 0:00:14]} 45... Nd2+ {[%clk 0:00:51][%emt 0:00:50]}
46. Rxd2 {[%clk 0:11:36][%emt 0:03:37]} 46... cxd2 {[%clk 0:03:16][%emt
0:00:04]} 0-1

[White "DUCOS, Antonios"]
[Black "GERVAIS, Liam"]
[WhiteElo "1890"]
[BlackElo "1758"]
[Result "1/2-1/2"]
[Date "2026.03.05"]